bitfinex-derivatives/quotes_BTCF0:USTF0_20240910
["timestamp","ask_amount","ask_price","bid_price","bid_amount"]
[1725969063044,0.0965,57247.0,57246.0,0.248137]
[1725969063232,0.0965,57247.0,57246.0,0.247337]
[1725969064336,0.0965,57247.0,57246.0,0.087337]
[1725969065034,0.0965,57247.0,57246.0,0.088337]
[1725969066435,0.0965,57247.0,57246.0,0.31905287]
[1725969067639,0.0965,57247.0,57246.0,0.249337]
[1725969068342,0.03132819,57255.0,57246.0,0.162]
[1725969068540,0.26703337,57261.0,57260.0,0.087316]
[1725969068734,0.05360659,57261.0,57260.0,0.0008]
[1725969069036,0.05360659,57261.0,57260.0,0.087316]
[1725969069037,0.52392,57261.0,57260.0,0.087316]
[1725969069645,1.12392,57261.0,57260.0,0.087316]
[1725969070140,1.12392,57261.0,57257.0,0.087321]
[1725969070338,0.16,57258.0,57254.0,0.0008]
[1725969070541,0.247324,57255.0,57254.0,0.0008]
[1725969071041,1.371284,57255.0,57254.0,0.0008]
[1725969071240,1.371284,57255.0,57254.0,0.088125]
[1725969071444,1.371284,57255.0,57250.0,0.08733]
[1725969071445,1.48754369,57255.0,57250.0,0.08733]
[1725969071648,0.087324,57255.0,57254.0,0.001]
[1725969071943,0.14093769,57255.0,57254.0,0.001]
[1725969072146,0.087328,57252.0,57251.0,0.087329]
[1725969072452,0.27871513,57252.0,57251.0,0.087329]
[1725969072749,1.26494169,57252.0,57251.0,0.087329]
[1725969072940,1.26614169,57252.0,57251.0,0.087329]
[1725969073545,0.66614169,57252.0,57251.0,0.088329]
[1725969074251,0.82614169,57252.0,57251.0,0.088329]
[1725969074442,0.82614169,57252.0,57251.0,0.089329]
[1725969075068,0.82614307,57252.0,57251.0,0.089329]
[1725969075346,0.82614307,57252.0,57251.0,0.002]
[1725969075347,1.42614307,57252.0,57251.0,0.002]
[1725969075648,0.087344,57242.0,57241.0,0.087344]
[1725969075845,0.247344,57242.0,57241.0,0.087344]
[1725969076147,0.087344,57242.0,57241.0,0.087344]
[1725969076557,0.611424,57242.0,57241.0,0.087344]
[1725969076748,0.771424,57242.0,57241.0,0.087344]
[1725969077148,0.087333,57250.0,57241.0,0.16]
[1725969077351,0.18323,57251.0,57249.0,0.0008]
[1725969077554,0.18323,57251.0,57250.0,0.088131]
[1725969077754,0.18323,57251.0,57250.0,0.087331]
[1725969077755,0.70723,57251.0,57250.0,0.087331]
[1725969078051,1.30723,57251.0,57250.0,0.087331]
[1725969078852,1.30723,57251.0,57250.0,0.088331]
[1725969078853,1.30823,57251.0,57250.0,0.088331]
[1725969079247,1.30823,57251.0,57250.0,0.001]
[1725969079854,1.30923,57251.0,57250.0,0.001]
[1725969080747,0.70823,57251.0,57250.0,0.001]
[1725969080946,0.70823,57251.0,57250.0,0.089331]
[1725969080947,0.18523,57251.0,57250.0,0.089331]
[1725969081456,0.0979,57251.0,57250.0,0.089331]
[1725969083748,0.002,57251.0,57250.0,0.089331]
[1725969084449,0.002,57251.0,57250.0,0.176662]
[1725969085461,0.002,57251.0,57250.0,0.089331]
[1725969089749,0.05561141,57251.0,57250.0,0.089331]
[1725969091556,0.11825592,57251.0,57250.0,0.089331]
[1725969091758,0.05561141,57251.0,57250.0,0.089331]
[1725969091954,0.05561141,57251.0,57250.0,0.249331]
[1725969092665,0.05561141,57251.0,57250.0,0.383662]
[1725969092849,0.05561141,57251.0,57250.0,0.430362]
[1725969093047,0.05561141,57251.0,57250.0,0.343031]
[1725969093859,0.14294141,57251.0,57250.0,0.183031]
[1725969094168,0.05561141,57251.0,57250.0,0.089331]
[1725969095069,0.2474901,57251.0,57250.0,0.089331]
[1725969095962,0.05560949,57251.0,57250.0,0.089331]
[1725969096166,0.05560949,57251.0,57250.0,0.249331]
[1725969097770,0.002,57251.0,57250.0,0.249331]
[1725969099068,0.002,57251.0,57250.0,0.336662]
[1725969100366,0.002,57251.0,57250.0,0.249331]
[1725969101165,0.002,57251.0,57250.0,0.089331]
[1725969106377,0.002,57251.0,57250.0,0.249331]
[1725969108470,0.002,57251.0,57250.0,0.089331]
[1725969109278,0.05561036,57251.0,57250.0,0.089331]
[1725969110077,0.05561036,57251.0,57250.0,0.176662]
[1725969110272,0.05561036,57251.0,57250.0,0.249331]
[1725969111069,0.05560926,57251.0,57250.0,0.336662]
[1725969111276,0.002,57251.0,57250.0,0.336662]
[1725969112773,0.002,57251.0,57250.0,0.46974365]
[1725969112976,0.001,57251.0,57250.0,0.50014444]
[1725969113177,0.002,57251.0,57250.0,0.50014444]
[1725969114984,0.002,57251.0,57250.0,1.71147544]
[1725969115285,0.00235143,57263.0,57257.0,0.261963]
[1725969115481,0.00235143,57263.0,57262.0,0.174626]
[1725969115687,0.00235143,57263.0,57262.0,0.46850765]
[1725969115890,0.00235143,57263.0,57262.0,0.46770765]
[1725969116277,0.00235143,57263.0,57262.0,0.334626]
[1725969116477,0.00235143,57263.0,57262.0,0.247313]
[1725969117188,0.00235143,57263.0,57262.0,0.33437228]
[1725969117385,0.00235143,57263.0,57262.0,0.247313]
[1725969117685,0.00335143,57263.0,57262.0,0.248313]
[1725969118384,0.00335143,57263.0,57262.0,0.30152303]
[1725969119283,0.00335143,57263.0,57262.0,0.30151193]
[1725969119785,0.00335143,57263.0,57262.0,0.249313]
[1725969119786,0.05694831,57263.0,57262.0,0.249313]
[1725969120474,0.05694831,57263.0,57262.0,0.28026271]
[1725969120681,0.05694832,57263.0,57262.0,0.28026271]
[1725969124787,0.05694832,57263.0,57262.0,0.36757571]
[1725969124788,0.00335143,57263.0,57262.0,0.36757571]
[1725969124990,0.00335143,57263.0,57262.0,0.28026271]
[1725969125496,0.00335143,57263.0,57262.0,0.36757571]
[1725969126487,0.00335143,57263.0,57262.0,0.45488871]
[1725969126697,0.00335143,57263.0,57262.0,0.36757571]
[1725969126897,0.00335143,57263.0,57262.0,0.45488871]
[1725969127689,0.00235143,57263.0,57262.0,0.45388871]
[1725969127892,0.00235143,57263.0,57262.0,1.64742407]
[1725969128399,0.00235143,57263.0,57262.0,1.57680871]
[1725969129296,0.00235143,57263.0,57262.0,1.64642407]
[1725969129491,0.00235143,57263.0,57262.0,1.57680871]
[1725969130004,4.3e-07,57263.0,57262.0,1.57680871]
[1725969130588,1.5e-07,57264.0,57263.0,0.261936]
[1725969130795,1.5e-07,57264.0,57263.0,0.262736]
[1725969130989,0.0053942,57265.0,57264.0,0.26193]
[1725969130990,3.5e-07,57265.0,57264.0,0.26193]
[1725969131198,3.5e-07,57265.0,57264.0,0.41965536]
[1725969131405,7e-08,57268.0,57267.0,0.261915]
[1725969131606,7e-08,57268.0,57267.0,0.56209668]
[1725969131899,7e-08,57268.0,57267.0,1.68513668]
[1725969132111,7.6e-07,57269.0,57268.0,0.873056]
[1725969132314,7.6e-07,57269.0,57268.0,1.02253102]
[1725969132602,9.9e-07,57270.0,57269.0,0.261906]
[1725969132802,9.9e-07,57270.0,57269.0,0.83781046]
[1725969132993,9.9e-07,57270.0,57269.0,1.43861046]
[1725969133597,7e-07,57272.0,57271.0,0.174598]
[1725969133892,7e-07,57272.0,57271.0,0.422697]
[1725969135608,7e-07,57272.0,57271.0,0.423697]
[1725969136510,3.1e-07,57275.0,57274.0,0.261885]
[1725969136810,3.1e-07,57275.0,57274.0,0.34918]
[1725969136995,3.1e-07,57275.0,57274.0,0.34998]
[1725969137198,3.1e-07,57275.0,57274.0,0.87378]
[1725969137603,0.01243982,57278.0,57276.0,0.087292]
[1725969137895,0.01243982,57278.0,57277.0,0.1608]
[1725969138097,0.01243982,57278.0,57277.0,0.17538]
[1725969138301,0.01243982,57278.0,57277.0,0.33538]
[1725969139307,0.01243982,57278.0,57277.0,0.33638]
[1725969140698,0.01243982,57278.0,57277.0,0.36778747]
[1725969140897,0.01243982,57278.0,57277.0,0.36878747]
[1725969142901,0.01243982,57278.0,57277.0,0.36778747]
[1725969143105,0.01243982,57278.0,57277.0,0.36678747]
[1725969146307,0.01243982,57278.0,57277.0,0.45407747]
[1725969148608,0.01243982,57278.0,57277.0,0.36678747]
[1725969150209,0.01243982,57278.0,57277.0,0.45407747]
[1725969155617,0.01243982,57278.0,57277.0,0.50620479]
[1725969155823,0.01243982,57278.0,57277.0,0.41891479]
[1725969156506,0.01243982,57278.0,57277.0,0.11949747]
[1725969156705,0.01243982,57278.0,57277.0,0.03220747]
[1725969157319,0.01243982,57278.0,57277.0,0.0008]
[1725969157708,0.01243982,57278.0,57277.0,0.08809]
[1725969160123,1.13619982,57278.0,57274.0,0.03131494]
[1725969160417,0.62066,57277.0,57276.0,0.087292]
[1725969160919,1.22066,57277.0,57276.0,0.087292]
[1725969161714,1.30795,57277.0,57276.0,0.087292]
[1725969162115,1.22066,57277.0,57276.0,0.087292]
[1725969162317,0.62066,57277.0,57276.0,0.087292]
[1725969163116,1.22066,57277.0,57276.0,0.087292]
[1725969163816,0.62066,57277.0,57276.0,0.087292]
[1725969164014,1.22066,57277.0,57276.0,0.087292]
[1725969165014,1.52873257,57277.0,57276.0,0.087292]
[1725969165213,0.92873257,57277.0,57276.0,0.087292]
[1725969165412,1.46611657,57277.0,57276.0,0.087292]
[1725969165623,1.52873255,57277.0,57276.0,0.087292]
[1725969166010,1.46611657,57277.0,57276.0,0.087292]
[1725969166226,1.52873255,57277.0,57276.0,0.087292]
[1725969166420,1.46611657,57277.0,57276.0,0.087292]
[1725969166920,1.27424701,57277.0,57276.0,0.087292]
[1725969168015,1.36153701,57277.0,57276.0,0.087292]
[1725969168622,1.61602769,57277.0,57276.0,0.087292]
[1725969168930,1.61602769,57277.0,57276.0,0.11796947]
[1725969169726,1.61603222,57277.0,57276.0,0.11796947]
[1725969169924,1.5534111,57277.0,57276.0,0.11796947]
[1725969170122,1.36154154,57277.0,57276.0,0.11796947]
[1725969170627,1.42416032,57277.0,57276.0,0.11796947]
[1725969171314,1.22066,57277.0,57276.0,0.11796947]
[1725969171518,0.6969,57277.0,57276.0,0.11796947]
[1725969171717,0.0969,57277.0,57276.0,0.11796947]
[1725969172525,0.62066,57277.0,57276.0,0.11796947]
[1725969174922,0.0969,57277.0,57276.0,0.11796947]
[1725969177625,0.18419,57277.0,57276.0,0.11796947]
[1725969179635,0.18419,57277.0,57276.0,0.17019585]
[1725969180026,0.23777686,57277.0,57276.0,0.087292]
[1725969180226,0.15048686,57277.0,57276.0,0.087292]
[1725969185634,0.05358686,57277.0,57276.0,0.174584]
[1725969185940,0.17450311,57277.0,57276.0,0.174584]
[1725969186435,0.22808997,57277.0,57276.0,0.174584]
[1725969186735,0.05358686,57277.0,57276.0,0.174584]
[1725969187936,0.01323982,57278.0,57277.0,0.08729]
[1725969188324,0.01323982,57278.0,57277.0,0.08769]
[1725969188744,0.01323982,57278.0,57277.0,0.27498]
[1725969189737,0.01323982,57278.0,57277.0,0.27598]
[1725969190234,0.01323982,57278.0,57277.0,0.34473085]
[1725969190438,0.01323982,57278.0,57277.0,0.27498]
[1725969190843,0.01323982,57278.0,57277.0,0.25744085]
[1725969192944,0.087293,57275.0,57274.0,0.087295]
[1725969193234,0.1,57277.0,57276.0,0.087292]
[1725969193440,0.1,57277.0,57276.0,0.087692]
[1725969194635,0.18729,57277.0,57276.0,0.087692]
[1725969196333,0.08729,57277.0,57276.0,0.087692]
[1725969200248,0.01323982,57278.0,57277.0,0.08729]
[1725969200444,0.06682489,57278.0,57277.0,0.27498]
[1725969200651,0.1878005,57278.0,57277.0,0.27999]
[1725969200947,0.06682489,57278.0,57277.0,0.27999]
[1725969201448,0.24138557,57278.0,57277.0,0.27999]
[1725969201941,0.24138557,57278.0,57277.0,0.36728]
[1725969202150,0.06682489,57278.0,57277.0,0.36728]
[1725969202846,0.06682489,57278.0,57277.0,0.36828]
[1725969203048,0.01323982,57278.0,57277.0,0.36828]
[1725969203244,0.01323982,57278.0,57277.0,0.42060268]
[1725969203643,0.01323982,57278.0,57277.0,0.36828]
[1725969204052,0.01323982,57278.0,57277.0,0.28099]
[1725969204237,0.01323982,57278.0,57277.0,0.35071994]
[1725969204443,0.01323982,57278.0,57277.0,0.35072196]
[1725969206252,0.01323982,57278.0,57277.0,0.28099]
[1725969210849,0.01323982,57278.0,57277.0,0.18869]
[1725969211853,0.01323982,57278.0,57277.0,0.08869]
[1725969216257,0.06682093,57278.0,57277.0,0.08869]
[1725969216757,0.01323982,57278.0,57277.0,0.27598]
[1725969218564,0.01323982,57278.0,57277.0,0.36327]
[1725969219960,0.01323982,57278.0,57277.0,0.08869]
[1725969224260,0.01323982,57278.0,57277.0,0.22828013]
[1725969224664,0.01323982,57278.0,57277.0,0.17598]
[1725969226567,0.01323982,57278.0,57277.0,0.08869]
[1725969230971,0.01323982,57278.0,57277.0,0.17574928]
[1725969231269,0.01323982,57278.0,57277.0,0.08869]
[1725969232776,0.01323982,57278.0,57277.0,0.26303928]
[1725969232970,0.01323982,57278.0,57277.0,0.30900363]
[1725969233471,0.01323982,57278.0,57277.0,0.26327]
[1725969233662,0.01323982,57278.0,57277.0,0.17598]
[1725969233869,0.01323982,57278.0,57277.0,0.26327]
[1725969234066,0.01323982,57278.0,57277.0,0.17598]
[1725969234373,0.01323982,57278.0,57277.0,0.26327]
[1725969234769,0.01323982,57278.0,57277.0,0.17598]
[1725969235366,0.06681601,57278.0,57277.0,0.22378]
[1725969236572,0.01323982,57278.0,57277.0,0.31107]
[1725969236876,0.01323982,57278.0,57277.0,0.74754]
[1725969237376,0.01323982,57278.0,57277.0,0.83483]
[1725969238973,0.01323982,57278.0,57277.0,0.31107]
[1725969239965,0.01323982,57278.0,57277.0,0.22378]
[1725969240373,0.0031861,57282.0,57281.0,0.087284]
[1725969240677,0.0031861,57282.0,57281.0,0.32069851]
[1725969241875,0.0031861,57282.0,57281.0,0.40798251]
[1725969242781,0.0031861,57282.0,57281.0,0.40898251]
[1725969243778,0.0031861,57282.0,57281.0,0.40798251]
[1725969243972,0.0031861,57282.0,57281.0,0.40898251]
[1725969245680,0.0031861,57282.0,57281.0,0.49626651]
[1725969245980,0.0031861,57282.0,57281.0,0.40898251]
[1725969248383,0.0031861,57282.0,57281.0,0.275968]
[1725969251078,0.0031861,57282.0,57281.0,0.088684]
[1725969251281,0.1031861,57282.0,57281.0,0.088684]
[1725969251483,0.15676436,57282.0,57281.0,0.088684]
[1725969253982,0.1031861,57282.0,57281.0,0.088684]
[1725969254293,0.36490976,57282.0,57281.0,0.088684]
[1725969254590,0.41848907,57282.0,57281.0,0.087684]
[1725969255213,0.087288,57279.0,57278.0,0.087288]
[1725969255394,0.711048,57279.0,57278.0,0.22008959]
[1725969255575,0.711048,57279.0,57277.0,0.08705675]
[1725969255576,0.087289,57278.0,57277.0,0.08705675]
[1725969255780,0.279289,57278.0,57277.0,0.22009145]
[1725969255976,0.279289,57278.0,57276.0,0.087292]
[1725969255977,0.08729,57277.0,57276.0,0.087292]
[1725969257183,0.08729,57277.0,57276.0,0.15695614]
[1725969258081,0.08729,57277.0,57276.0,0.001]
[1725969258398,0.08729,57277.0,57276.0,0.004]
[1725969258583,0.08729,57277.0,57276.0,0.003]
[1725969258784,0.1154116,57277.0,57276.0,0.003]
[1725969259184,0.087292,57276.0,57275.0,0.15695714]
[1725969259396,0.187292,57276.0,57275.0,0.15695714]
[1725969260087,0.187292,57276.0,57275.0,0.087293]
[1725969260298,0.1,57276.0,57275.0,0.092293]
[1725969260491,0.1281216,57277.0,57276.0,0.087292]
[1725969260683,0.1,57277.0,57276.0,0.15775614]
[1725969260879,0.092,57278.0,57277.0,0.08729]
[1725969261187,0.0008,57280.0,57279.0,0.174574]
[1725969261387,0.0008,57280.0,57279.0,0.4084009]
[1725969261989,0.0008,57280.0,57279.0,0.3211139]
[1725969262495,0.04354456,57280.0,57279.0,0.188087]
[1725969264096,0.0435446,57280.0,57279.0,0.188087]
[1725969267199,0.0435446,57280.0,57279.0,0.275374]
[1725969269408,0.04354398,57280.0,57279.0,0.275374]
[1725969270504,0.0008,57280.0,57279.0,0.40839009]
[1725969272202,0.0008,57280.0,57279.0,0.40800749]
[1725969272399,0.0008,57280.0,57279.0,0.30800749]
[1725969273099,0.1008,57280.0,57279.0,0.30800749]
[1725969273308,0.1008,57280.0,57279.0,0.30800885]
[1725969273500,0.1008,57280.0,57279.0,0.088087]
[1725969274204,0.0008,57280.0,57279.0,0.088087]
[1725969274903,0.188086,57280.0,57279.0,0.05296303]
[1725969275601,0.188086,57280.0,57279.0,0.14025003]
[1725969277200,0.21494072,57280.0,57279.0,0.14025003]
[1725969277402,0.12765472,57280.0,57279.0,0.088087]
[1725969277596,0.0008,57280.0,57279.0,0.088087]
[1725969277799,0.0008,57280.0,57279.0,0.175374]
[1725969278202,0.0008,57280.0,57279.0,0.088087]
[1725969279798,0.0008,57280.0,57279.0,0.175374]
[1725969280004,0.0008,57280.0,57279.0,0.39528796]
[1725969280208,0.0008,57280.0,57279.0,0.39567056]
[1725969282207,0.0008,57280.0,57279.0,0.55567056]
[1725969282406,0.0031861,57282.0,57281.0,0.174568]
[1725969282707,0.0031861,57282.0,57281.0,0.39526668]
[1725969283911,0.0031861,57282.0,57281.0,0.48255068]
[1725969284100,0.0031861,57282.0,57281.0,0.34954112]
[1725969285409,0.00718008,57284.0,57283.0,0.174562]
[1725969285609,0.00718008,57284.0,57283.0,0.335362]
[1725969289806,0.00718008,57284.0,57283.0,0.36242552]
[1725969292201,0.00718008,57284.0,57283.0,0.44970652]
[1725969292608,0.00718008,57284.0,57283.0,0.582711]
[1725969294413,0.00718008,57284.0,57283.0,0.49543]
[1725969294808,0.00718008,57284.0,57283.0,0.582711]
[1725969298408,0.00718008,57284.0,57283.0,0.49543]
[1725969299215,0.00718008,57284.0,57283.0,0.408149]
[1725969299420,0.09998008,57284.0,57283.0,0.11514452]
[1725969300519,0.14272343,57284.0,57283.0,0.11514452]
[1725969302321,0.15072343,57284.0,57283.0,0.11514452]
[1725969302825,0.10798008,57284.0,57283.0,0.11514452]
[1725969304818,0.15072279,57284.0,57283.0,0.11514452]
[1725969305213,0.15072279,57284.0,57279.0,0.087286]
[1725969305421,0.16,57280.0,57279.0,0.087286]
[1725969305619,0.20274271,57280.0,57279.0,0.087286]
[1725969306611,0.20374271,57280.0,57279.0,0.088286]
[1725969306818,0.20374887,57280.0,57279.0,0.088286]
[1725969307521,0.248286,57280.0,57279.0,0.22107802]
[1725969307822,0.772046,57280.0,57279.0,0.088286]
[1725969308525,1.372046,57280.0,57279.0,0.001]
[1725969308819,0.08729,57277.0,57276.0,0.087291]
[1725969309117,0.08729,57277.0,57275.0,0.08702405]
[1725969309118,0.24729,57277.0,57275.0,0.08702405]
[1725969309324,0.52376,57276.0,57274.0,0.17431905]
[1725969309518,0.24817,57277.0,57275.0,0.087293]
[1725969309713,0.52376,57276.0,57275.0,0.087293]
[1725969310118,1.12376,57276.0,57275.0,0.087293]
[1725969312935,1.12376,57276.0,57275.0,0.089293]
[1725969315521,0.16,57277.0,57276.0,0.087292]
[1725969315720,0.16,57277.0,57276.0,0.088092]
[1725969316226,0.68376,57277.0,57276.0,0.088092]
[1725969316821,0.68476,57277.0,57276.0,0.089092]
[1725969317331,0.161,57277.0,57276.0,0.089092]
[1725969320036,0.001,57277.0,57276.0,0.263676]
[1725969321036,0.001,57277.0,57276.0,0.176384]
[1725969323430,0.001,57277.0,57276.0,0.089092]
[1725969324534,0.161,57277.0,57276.0,0.089092]
[1725969325630,0.24829,57277.0,57276.0,0.089092]
[1725969328527,0.27617655,57277.0,57276.0,0.089092]
[1725969340439,0.37251637,57277.0,57276.0,0.089092]
[1725969340927,0.31892903,57277.0,57276.0,0.089092]
[1725969345343,0.37251638,57277.0,57276.0,0.089092]
[1725969345540,0.31892903,57277.0,57276.0,0.089092]
[1725969345841,0.27617655,57277.0,57276.0,0.089092]
[1725969346237,0.21617655,57277.0,57276.0,0.089092]
[1725969346638,0.21617655,57277.0,57276.0,0.14137312]
[1725969346835,0.21617655,57277.0,57276.0,0.089092]
[1725969347339,0.21617655,57277.0,57276.0,0.14137303]
[1725969349035,0.11617655,57277.0,57276.0,0.14137303]
[1725969349231,0.21617655,57277.0,57276.0,0.14137303]
[1725969349730,0.12888655,57277.0,57276.0,0.14137303]
[1725969351437,0.12888655,57277.0,57276.0,0.089092]
[1725969352843,0.28595227,57277.0,57276.0,0.089092]
[1725969353143,0.38229206,57277.0,57276.0,0.089092]
[1725969353341,0.22522634,57277.0,57276.0,0.089092]
[1725969353545,0.17163902,57277.0,57276.0,0.089092]
[1725969355537,0.04375247,57277.0,57276.0,0.176384]
[1725969355844,0.001,57277.0,57276.0,0.176384]
[1725969356239,0.101,57277.0,57276.0,0.176384]
[1725969357240,0.12900683,57277.0,57276.0,0.176384]
[1725969358649,0.12900683,57277.0,57276.0,0.089092]
[1725969359841,0.22534468,57277.0,57276.0,0.089092]
[1725969360042,0.22534468,57277.0,57276.0,0.176384]
[1725969360346,0.22534468,57277.0,57276.0,0.089092]
[1725969360847,0.12900683,57277.0,57276.0,0.089092]
[1725969361943,0.12800683,57277.0,57276.0,0.089092]
[1725969362145,0.21529683,57277.0,57276.0,0.089092]
[1725969362342,0.12800683,57277.0,57276.0,0.089092]
[1725969362650,0.12800683,57277.0,57276.0,0.15857873]
[1725969363346,0.12800683,57277.0,57276.0,0.089092]
[1725969363949,0.1,57277.0,57276.0,0.15857873]
[1725969364648,0.0041,57282.0,57281.0,0.174568]
[1725969364848,0.00798008,57284.0,57283.0,0.087281]
[1725969365051,8e-08,57284.0,57283.0,0.495257]
[1725969365241,0.01564698,57285.0,57284.0,0.26184]
[1725969365443,0.01564698,57285.0,57284.0,1.519374]
[1725969365752,0.01564698,57285.0,57284.0,1.566574]
[1725969366242,0.01564698,57285.0,57284.0,1.59356]
[1725969366946,0.01864698,57285.0,57284.0,1.59356]
[1725969368358,0.01964698,57285.0,57284.0,1.6456499]
[1725969368946,0.01964698,57285.0,57284.0,1.59356]
[1725969369448,0.01964698,57285.0,57284.0,1.64564373]
[1725969370052,0.01964698,57285.0,57284.0,1.645627]
[1725969370549,0.01964698,57285.0,57284.0,0.99356]
[1725969370753,0.01964698,57285.0,57284.0,1.59356]
[1725969371848,0.01964698,57285.0,57284.0,0.99356]
[1725969372055,0.01964698,57285.0,57284.0,1.59356]
[1725969374154,0.01964698,57285.0,57284.0,0.83356]
[1725969374354,0.01964698,57285.0,57284.0,0.13528]
[1725969374655,0.01964698,57285.0,57284.0,0.08808]
[1725969376356,0.06239,57285.0,57284.0,0.33536]
[1725969376554,0.01964698,57285.0,57284.0,1.54636]
[1725969376760,0.01964698,57285.0,57284.0,0.85908]
[1725969378060,0.01964698,57285.0,57284.0,1.45908]
[1725969379558,0.01964698,57285.0,57284.0,0.93536]
[1725969379759,0.01964698,57285.0,57284.0,0.33536]
[1725969380361,0.01964698,57285.0,57284.0,0.42264]
[1725969381649,0.01864698,57285.0,57284.0,0.42264]
[1725969382561,0.01864698,57285.0,57284.0,1.54636]
[1725969382771,0.01864698,57285.0,57284.0,1.598427]
[1725969382772,0.01764698,57285.0,57284.0,1.598427]
[1725969384361,0.01764698,57285.0,57284.0,1.54636]
[1725969386051,0.01764698,57285.0,57284.0,0.85908]
[1725969386255,0.01764698,57285.0,57284.0,0.94636]
[1725969386866,0.01764698,57285.0,57284.0,0.42264]
[1725969389357,0.01764698,57285.0,57284.0,0.49212589]
[1725969389564,0.01764698,57285.0,57284.0,1.01584589]
[1725969390167,0.01764698,57285.0,57284.0,0.42264]
[1725969392261,0.06038402,57285.0,57284.0,0.42264]
[1725969392775,0.01764698,57285.0,57284.0,0.42264]
[1725969393257,0.06038402,57285.0,57284.0,0.42264]
[1725969396565,0.05838402,57285.0,57284.0,0.42264]
[1725969396871,0.05838402,57285.0,57284.0,0.42564]
[1725969398063,0.0688013,57286.0,57285.0,0.261834]
[1725969398366,0.0688013,57286.0,57285.0,0.55420634]
[1725969399663,0.0688013,57286.0,57285.0,0.55620634]
[1725969400562,0.0688013,57286.0,57285.0,0.55598681]
[1725969400774,0.0688013,57286.0,57285.0,0.55898681]
[1725969404865,0.0688013,57286.0,57285.0,0.48757445]
[1725969405470,0.0688013,57286.0,57285.0,0.40055275]
[1725969411974,0.02514204,57286.0,57285.0,0.40055275]
[1725969413079,0.02514204,57286.0,57285.0,0.267634]
[1725969413080,0.06787567,57286.0,57285.0,0.267634]
[1725969413670,0.06787567,57286.0,57285.0,0.268634]
[1725969413870,0.06787567,57286.0,57285.0,0.269634]
[1725969415168,0.06787567,57286.0,57285.0,0.369634]
[1725969419969,0.06787567,57286.0,57285.0,0.6613113]
[1725969419970,0.02514204,57286.0,57285.0,0.6613113]
[1725969420570,0.02514204,57286.0,57285.0,0.66151412]
[1725969424180,0.02514204,57286.0,57285.0,0.78364888]
[1725969424875,0.02511822,57287.0,57286.0,0.174552]
[1725969425076,0.02511822,57287.0,57286.0,0.46723212]
[1725969426269,0.02511822,57287.0,57286.0,0.47023212]
[1725969426475,0.02511822,57287.0,57286.0,0.47123212]
[1725969428176,0.01812662,57288.0,57287.0,0.17455]
[1725969428376,0.01812662,57288.0,57287.0,0.17535]
[1725969428782,0.27154416,57288.0,57287.0,0.27535]
[1725969428982,0.11442506,57288.0,57287.0,0.27535]
[1725969429377,0.11442506,57288.0,57287.0,0.28735]
[1725969429578,0.27154416,57288.0,57287.0,0.29835]
[1725969430177,0.27154416,57288.0,57287.0,0.28635]
[1725969430375,0.27154416,57288.0,57287.0,0.29835]
[1725969431781,0.11442506,57288.0,57287.0,0.29835]
[1725969432082,0.17522205,57288.0,57287.0,0.29835]
[1725969432283,0.22878652,57288.0,57287.0,0.29835]
[1725969432488,0.27152049,57288.0,57287.0,0.29835]
[1725969434586,0.2715261,57288.0,57287.0,0.29835]
[1725969435083,0.2715261,57288.0,57287.0,0.67856305]
[1725969435084,0.17522205,57288.0,57287.0,0.67856305]
[1725969437186,0.01812662,57288.0,57287.0,0.67856305]
[1725969438679,0.01812662,57288.0,57287.0,0.40401305]
[1725969439391,0.01812662,57288.0,57287.0,0.39201305]
[1725969439595,0.01812662,57288.0,57287.0,0.40603852]
[1725969439991,0.01812662,57288.0,57287.0,0.24607194]
[1725969439992,0.11812662,57288.0,57287.0,0.24607194]
[1725969440188,0.52368,57287.0,57284.0,0.10446507]
[1725969440387,0.10627962,57288.0,57287.0,0.028]
[1725969440578,0.10619962,57288.0,57287.0,0.0288]
[1725969440784,1.32987962,57288.0,57287.0,0.0288]
[1725969440991,1.32987962,57288.0,57287.0,0.09845702]
[1725969441291,1.32987962,57288.0,57287.0,0.0288]
[1725969442392,1.32987962,57288.0,57287.0,0.0008]
[1725969442690,1.33187962,57288.0,57287.0,0.0258]
[1725969443085,1.45625585,57288.0,57287.0,0.0258]
[1725969443290,1.45525585,57288.0,57287.0,0.0008]
[1725969443493,0.52368,57287.0,57278.0,0.0082]
[1725969443691,0.84430285,57288.0,57280.0,0.087286]
[1725969443692,0.1,57281.0,57280.0,0.087286]
[1725969443994,0.19631947,57281.0,57280.0,0.087286]
[1725969444492,1.40592163,57281.0,57280.0,0.087286]
[1725969444689,1.26646853,57281.0,57280.0,0.087286]
[1725969444895,1.31446853,57281.0,57280.0,0.087286]
[1725969445589,1.31546853,57281.0,57280.0,0.093286]
[1725969445893,1.40275253,57281.0,57280.0,0.093286]
[1725969446094,1.46275253,57281.0,57280.0,0.093286]
[1725969446797,1.46375253,57281.0,57280.0,0.096286]
[1725969447295,1.60306758,57281.0,57280.0,0.096286]
[1725969448393,1.46375253,57281.0,57280.0,0.096286]
[1725969448898,1.51055253,57281.0,57280.0,0.096286]
[1725969449693,0.087289,57278.0,57277.0,0.08729]
[1725969449899,0.29003816,57278.0,57277.0,0.08729]
[1725969450102,0.247289,57278.0,57277.0,0.08729]
[1725969450286,1.371049,57278.0,57277.0,0.08729]
[1725969450987,1.372049,57278.0,57277.0,0.09929]
[1725969452296,1.372049,57278.0,57277.0,0.15137474]
[1725969452598,1.373049,57278.0,57277.0,0.16137474]
[1725969453797,1.373049,57278.0,57277.0,0.10929]
[1725969455305,1.373049,57278.0,57277.0,0.16137474]
[1725969457506,1.373049,57278.0,57277.0,0.16135986]
[1725969458107,1.373049,57278.0,57277.0,0.10929]
[1725969458703,0.68576,57278.0,57277.0,0.10929]
[1725969458907,0.002,57278.0,57277.0,0.40864986]
[1725969459097,0.002,57278.0,57277.0,0.44387]
[1725969459298,0.27682662,57288.0,57284.0,0.08728]
[1725969459502,0.27770662,57288.0,57287.0,0.087275]
[1725969459702,0.27682662,57288.0,57287.0,0.088075]
[1725969459895,0.27682662,57288.0,57287.0,0.087275]
[1725969461809,0.30494573,57288.0,57287.0,0.087275]
[1725969462610,0.30594573,57288.0,57287.0,0.088275]
[1725969463412,0.30694573,57288.0,57287.0,0.096275]